bitfinex/quotes_SOLUSD_20241213
["timestamp","ask_amount","ask_price","bid_price","bid_amount"]
[1734105240879,11.86630846,221.76,221.73,34.96026399]
[1734105241100,5.0,221.74,221.66,0.34123846]
[1734105241284,6.86630846,221.68,221.62,20.0]
[1734105241481,6.86630846,221.68,221.64,20.0]
[1734105241800,6.86630846,221.75,221.68,20.0]
[1734105242010,6.86630846,221.73,221.69,0.34127085]
[1734105242184,11.86630846,221.76,221.69,0.34127085]
[1734105242385,6.86630846,221.73,221.72,34.96026399]
[1734105242582,6.86630846,221.65,221.61,12.0785]
[1734105242781,6.86630846,221.71,221.64,69.92052798]
[1734105242999,6.86630846,221.75,221.7,34.96026399]
[1734105243286,6.86630846,221.75,221.74,34.96026399]
[1734105243493,5.0,221.74,221.71,0.34133622]
[1734105243866,11.86630846,221.69,221.62,11.2803]
[1734105243982,6.86630846,221.67,221.63,0.34191361]
[1734105244383,6.86630846,221.67,221.62,11.2803]
[1734105244818,6.86630846,221.7,221.66,34.96026399]
[1734105244992,11.86630846,221.75,221.69,34.96026399]
[1734105245203,6.866309,221.91,221.67,0.34153799]
[1734105245204,11.86630846,221.8,221.74,34.96026399]
[1734105245509,11.86630846,221.8,221.79,34.96026399]
[1734105245706,5.0,221.8,221.78,34.96026399]
[1734105245890,6.86630846,221.71,221.66,20.0]
[1734105246090,6.86630846,221.73,221.7,34.96026399]
[1734105246284,6.86630846,221.77,221.72,34.96026399]
[1734105246485,5.0,221.76,221.7,11.61753324]
[1734105246801,6.86630846,221.74,221.7,0.34133324]
[1734105247009,6.86630846,221.74,221.73,34.96026399]
[1734105247610,6.86630846,221.78,221.73,69.92052798]
[1734105247811,11.86630846,221.83,221.77,34.96026399]
[1734105248147,11.86630846,221.83,221.82,34.96026399]
[1734105248549,6.86630846,221.83,221.82,34.96026399]
[1734105250159,6.86630846,221.83,221.71,34.96026399]
[1734105250160,5.0,221.74,221.71,34.96026399]
[1734105250314,11.86630846,221.74,221.73,34.96026399]
[1734105250522,11.86630846,221.74,221.72,34.96026399]
[1734105251536,11.86630846,221.74,221.73,34.96026399]
[1734105252119,6.86630846,221.7,221.69,34.96026399]
[1734105252435,11.86630846,221.65,221.63,34.96026399]
[1734105252736,6.86630846,221.61,221.6,34.96026399]
[1734105253047,11.86630846,221.61,221.6,34.96026399]
[1734105253614,6.86630846,221.61,221.6,34.96026399]
[1734105255034,6.86630846,221.63,221.6,34.96026399]
[1734105255258,5.0,221.62,221.57,0.3423053]
[1734105255459,11.86630846,221.62,221.57,0.3423053]
[1734105255765,11.86630846,221.64,221.57,0.3423053]
[1734105255966,6.86630846,221.64,221.59,20.0]
[1734105256177,6.86630846,221.64,221.6,0.34216863]
[1734105256533,6.86630846,221.66,221.63,34.96026399]
[1734105256842,6.86630846,221.68,221.65,69.92052798]
[1734105257149,11.86630846,221.7,221.67,34.96026399]
[1734105257357,11.86630846,221.7,221.69,34.96026399]
[1734105258150,5.0,221.7,221.69,34.96026399]
[1734105258460,11.86630846,221.7,221.69,34.96026399]
[1734105258644,6.86630846,221.66,221.65,34.96026399]
[1734105258842,6.86630846,221.66,221.59,11.6236098]
[1734105258843,6.86630846,221.64,221.63,34.96026399]
[1734105259157,5.0,221.63,221.56,2.70641283]
[1734105259372,6.86630846,221.64,221.63,34.96026399]
[1734105259861,6.86630846,221.66,221.63,34.96026399]
[1734105260063,6.86630846,221.69,221.65,69.92052798]
[1734105260269,6.86630846,221.72,221.68,34.96026399]
[1734105260574,6.86630846,221.72,221.71,34.96026399]
[1734105260727,6.86630846,221.76,221.71,35.30160568]
[1734105260931,6.86630846,221.74,221.71,0.34134169]
[1734105261132,6.86630846,221.74,221.69,20.34134483]
[1734105261133,5.0,221.73,221.69,20.34134483]
[1734105261434,5.0,221.75,221.69,0.34134483]
[1734105261632,6.86630846,221.76,221.7,20.0]
[1734105261856,6.86630846,221.76,221.71,31.61661152]
[1734105262047,6.86630846,221.76,221.75,34.96026399]
[1734105262354,11.86630846,221.78,221.75,34.96026399]
[1734105262555,11.86630846,221.78,221.77,34.96026399]
[1734105263056,0.5212525,221.86,221.68,2.64247369]
[1734105263057,11.86630846,221.74,221.68,2.64247369]
[1734105263264,6.86630846,221.72,221.69,11.277]
[1734105263859,6.86630846,221.74,221.7,0.34136412]
[1734105264066,5.0,221.77,221.73,34.96026399]
[1734105264237,5.0,221.77,221.76,34.96026399]
[1734105264953,11.86630846,221.8,221.76,35.30138669]
[1734105265153,11.86630846,221.82,221.79,34.96026399]
[1734105265374,11.86630846,221.82,221.81,34.96026399]
[1734105266036,6.86630846,221.85,221.81,34.96026399]
[1734105266427,5.0,221.85,221.84,34.96026399]
[1734105267563,0.5212525,221.86,221.85,34.96026399]
[1734105267748,0.5212525,221.86,221.85,69.92052798]
[1734105267946,0.5212525,221.86,221.85,70.26060434]
[1734105268246,5.25e-05,221.86,221.85,70.26060434]
[1734105268665,5.25e-05,221.86,221.85,78.39429588]
[1734105268863,5.25e-05,221.86,221.85,70.26060434]
[1734105269040,5.25e-05,221.86,221.85,35.30034035]
[1734105269485,5.25e-05,221.86,221.85,70.26060434]
[1734105269844,6.86630846,221.95,221.94,34.96026399]
[1734105270052,6.86630846,221.97,221.94,34.96026399]
[1734105270250,6.86630846,221.97,221.9,0.33973904]
[1734105270251,6.86630846,221.97,221.96,34.96026399]
[1734105271282,6.86630846,221.99,221.96,34.96026399]
[1734105271490,6.86630846,221.99,221.98,34.96026399]
[1734105272045,6.86630846,221.99,221.97,34.96026399]
[1734105272356,6.86630846,221.95,221.94,34.96026399]
[1734105272554,6.86630846,221.95,221.88,0.33975318]
[1734105272555,6.86630846,221.93,221.92,34.96026399]
[1734105273346,6.86630846,221.93,221.91,34.96026399]
[1734105273750,6.86630846,221.91,221.86,0.34028552]
[1734105273954,6.86630846,221.85,221.84,34.96026399]
[1734105274571,11.2619,221.99,221.84,34.96026399]
[1734105274572,6.86630846,221.87,221.84,34.96026399]
[1734105274782,6.86630846,221.87,221.86,34.96026399]
[1734105275777,6.86630846,221.87,221.85,34.96026399]
[1734105276456,6.86630846,221.87,221.86,34.96026399]
[1734105276872,6.86630846,221.9,221.86,34.96026399]
[1734105277079,6.86630846,221.9,221.89,34.96026399]
[1734105277657,6.86630846,221.92,221.89,34.96026399]
[1734105277861,6.86630846,221.94,221.91,34.96026399]
[1734105278190,6.86630846,221.92,221.91,34.96026399]
[1734105278478,6.86630846,221.9,221.89,34.96026399]
[1734105279060,6.86630846,221.93,221.89,34.96026399]
[1734105279264,6.86630846,221.93,221.92,34.96026399]
[1734105279680,6.86630846,221.95,221.92,34.96026399]
[1734105279983,6.86630846,221.95,221.9,11.2663]
[1734105279984,6.86630846,221.95,221.94,34.96026399]
[1734105281771,6.86630846,221.95,221.93,34.96026399]
[1734105282363,30.84459067,222.05,221.82,11.2699]
[1734105282364,6.86630846,221.85,221.82,11.2699]
[1734105282683,6.86630846,221.85,221.84,34.96026399]
[1734105283269,6.86630846,221.85,221.82,34.96026399]
[1734105283480,6.86630846,221.79,221.78,34.96026399]
[1734105283681,6.86630846,221.79,221.77,2.64120618]
[1734105283682,6.86630846,221.79,221.77,37.60147017]
[1734105283873,6.86630846,221.79,221.77,34.96026399]
[1734105284061,6.86630846,221.79,221.78,34.96026399]
[1734105284873,6.86630846,221.81,221.78,34.96026399]
[1734105285189,6.86630846,221.82,221.8,34.96026399]
[1734105285388,6.86630846,221.82,221.81,34.96026399]
[1734105286268,6.86630846,221.84,221.81,35.30108225]
[1734105286486,6.86630846,221.84,221.83,34.96026399]
[1734105286683,6.86630846,221.88,221.83,34.96026399]
[1734105286890,6.86630846,221.88,221.87,34.96026399]
[1734105289266,6.86630846,221.88,221.85,34.96026399]
[1734105289476,6.86630846,221.86,221.85,34.96026399]
[1734105290595,6.86630846,221.89,221.85,69.92052798]
[1734105290796,6.86630846,221.89,221.88,34.96026399]
[1734105290997,6.86630846,221.92,221.88,35.30040006]
[1734105291175,6.86630846,221.93,221.91,34.96026399]
[1734105291370,6.86630846,221.93,221.92,34.96026399]
[1734105292297,6.86630846,221.93,221.89,34.96026399]
[1734105292597,6.86630846,221.9,221.77,0.34038239]
[1734105292789,6.86630846,221.8,221.77,0.34038239]
[1734105293001,6.86630846,221.78,221.77,0.34038239]
[1734105293377,6.86630846,221.78,221.77,30.34038239]
[1734105293576,6.86630846,221.67,221.64,34.96026399]
[1734105293786,6.86630846,221.72,221.66,34.96026399]
[1734105294000,6.86630846,221.7,221.67,0.34159573]
[1734105294183,6.86630846,221.68,221.67,0.34159573]
[1734105294388,6.86630846,221.7,221.67,0.34159573]
[1734105295299,6.86630846,221.7,221.69,34.96026399]
[1734105296775,6.86630846,221.7,221.68,34.96026399]
[1734105297199,6.86630846,221.7,221.69,34.96026399]
[1734105297689,6.86630846,221.7,221.68,34.96026399]
[1734105297900,6.86630846,221.7,221.67,34.96026399]
[1734105298090,6.86630846,221.68,221.66,34.96026399]
[1734105298287,6.86630846,221.66,221.63,35.3020029]
[1734105298597,6.86630846,221.66,221.64,34.96026399]
[1734105298785,6.86630846,221.66,221.65,34.96026399]
[1734105299193,23.776884,221.78,221.65,34.96026399]
[1734105299194,6.86630846,221.68,221.65,34.96026399]
[1734105299382,6.86630846,221.7,221.67,34.96026399]
[1734105299783,6.86630846,221.7,221.69,34.96026399]
[1734105300301,6.86630846,221.72,221.69,34.96026399]
[1734105300488,6.86630846,221.7,221.69,34.96026399]
[1734105300835,6.86630846,221.67,221.65,34.96026399]
[1734105301102,6.86630846,221.65,221.63,34.96026399]
[1734105301802,6.86630846,221.63,221.62,34.96026399]
[1734105302120,6.86630846,221.66,221.61,22.65161406]
[1734105302328,6.86630846,221.63,221.61,22.65161406]
[1734105302494,6.86630846,221.65,221.58,0.34200784]
[1734105302803,6.86630846,221.6,221.58,30.0]
[1734105303014,6.86630846,221.58,221.51,12.6261]
[1734105303185,6.86630846,221.56,221.53,37.59903231]
[1734105303504,6.86630846,221.52,221.5,42.24046399]
[1734105303706,6.86630846,221.5,221.49,34.96026399]
[1734105304097,6.86630846,221.52,221.49,34.96026399]
[1734105304292,15.0,221.65,221.51,34.96026399]
[1734105304293,6.86630846,221.56,221.51,34.96026399]
[1734105304618,6.86630846,221.58,221.55,34.96026399]
[1734105304796,6.86630846,221.6,221.57,34.96026399]
[1734105304996,6.86630846,221.6,221.58,0.34241174]
[1734105305205,6.86630846,221.57,221.56,34.96026399]
[1734105305715,0.84600188,221.68,221.49,0.34258888]
[1734105305716,6.86630846,221.59,221.49,0.34258888]
[1734105305924,15.84600188,221.68,221.49,0.34258888]
[1734105305925,6.86630846,221.51,221.5,30.0]
[1734105306430,6.86630846,221.51,221.5,64.96026399]
[1734105306905,6.86630846,221.52,221.5,64.96026399]
[1734105307104,6.86630846,221.52,221.51,35.30304969]
[1734105307290,6.86630846,221.56,221.51,35.30304969]
[1734105307492,6.86630846,221.58,221.55,34.96026399]
[1734105307712,6.86630846,221.6,221.57,34.96026399]
[1734105307900,6.86630846,221.58,221.56,0.34254045]
[1734105308310,6.86630846,221.55,221.54,0.34247271]
[1734105308522,38.2356,221.7,221.53,34.96026399]
[1734105308523,6.86630846,221.54,221.53,34.96026399]
[1734105309337,6.86630846,221.54,221.52,34.96026399]
[1734105309539,6.86630846,221.52,221.51,34.96026399]
[1734105310019,6.86630846,221.53,221.51,34.96026399]
[1734105310218,30.0,221.66,221.46,3.104955]
[1734105310219,6.86630846,221.55,221.52,34.96026399]
[1734105310396,6.86630846,221.55,221.54,34.96026399]
[1734105310598,6.86630846,221.49,221.48,34.96026399]
[1734105311527,6.86630846,221.37,221.31,0.5212525]
[1734105311718,6.86630846,221.32,221.31,0.5212525]
[1734105312115,6.86630846,221.32,221.31,35.48151649]
[1734105312643,6.86630846,221.32,221.31,0.5212525]
[1734105314017,6.86630846,221.36,221.31,35.48151649]
[1734105314229,6.86630846,221.34,221.33,34.96026399]
[1734105314404,39.62364729,221.47,221.31,35.48151649]
[1734105314405,6.86630846,221.32,221.31,35.48151649]
[1734105314602,6.86630846,221.32,221.31,0.5212525]
[1734105314921,6.86630846,221.32,221.31,35.48151649]
[1734105315122,6.86630846,221.33,221.31,35.48151649]
[1734105315305,6.86630846,221.33,221.32,34.96026399]
[1734105315628,6.86630846,221.34,221.32,34.96026399]
[1734105315838,6.86630846,221.34,221.31,0.5212525]
[1734105315839,6.86630846,221.34,221.33,34.96026399]
[1734105317042,6.86630846,221.34,221.32,34.96026399]
[1734105317208,6.86630846,221.32,221.31,0.5212525]
[1734105318112,30.64319246,221.32,221.31,0.5212525]
[1734105319311,6.86630846,221.32,221.31,0.5212525]
[1734105322127,30.64319246,221.32,221.31,0.5212525]
[1734105323413,36.86630846,221.3,221.29,46.7898525]
[1734105323618,46.49065418,221.3,221.29,46.7898525]
[1734105323815,30.64319246,221.3,221.29,46.7898525]
[1734105324143,6.86630846,221.3,221.29,46.7898525]
[1734105326014,30.64319246,221.3,221.29,46.7898525]
[1734105326329,30.64319246,221.3,221.29,12.8776525]
[1734105326330,60.64319246,221.3,221.29,12.8776525]
[1734105326527,61.49079426,221.3,221.29,5.7399525]
[1734105326727,61.49079426,221.3,221.29,5.25e-05]
[1734105327031,6.86630846,221.13,221.12,21.57314718]
[1734105327430,6.86630846,221.17,221.12,21.57314718]
[1734105327733,6.86630846,221.15,221.14,21.57314718]
[1734105328122,6.86630846,221.15,221.09,0.5212525]
[1734105328123,6.86630846,221.1,221.09,1.31e-05]
[1734105328635,61.49143489,221.1,221.09,1.31e-05]
[1734105328840,46.49143489,221.1,221.09,1.31e-05]
[1734105329225,61.49143489,221.1,221.09,1.31e-05]
[1734105331137,6.86630846,220.91,220.87,0.5212525]
[1734105331338,6.86630846,220.88,220.87,0.5212525]
[1734105332028,6.86630846,220.9,220.87,0.5212525]
[1734105332240,6.86630846,220.88,220.87,35.68756721]
[1734105332729,6.86630846,220.88,220.87,0.5212525]
[1734105334124,6.86630846,220.9,220.87,35.68756721]
[1734105334440,12.71490127,221.04,220.94,2.28509873]
[1734105334641,12.71490127,221.02,220.9,35.16631471]
[1734105334822,12.71490127,221.02,220.92,2.28509873]
[1734105334823,0.84349538,221.01,220.92,2.28509873]
[1734105335023,28.55839665,221.01,220.9,35.16631471]
[1734105335237,13.55839665,221.01,220.89,2.28509873]
[1734105335443,0.84349538,221.01,220.9,35.16631471]
[1734105335635,23.776884,221.0,220.9,35.16631471]
[1734105335839,0.84349538,220.99,220.9,35.16631471]
[1734105336223,0.84349538,220.99,220.91,2.28509873]
[1734105336938,23.776884,221.0,220.91,2.28509873]
[1734105337244,23.776884,220.98,220.87,0.5212525]
[1734105337543,15.0,220.89,220.87,0.5212525]
[1734105337743,37.33528065,220.88,220.87,0.5212525]
[1734105338117,24.62037938,220.88,220.87,0.5212525]
[1734105338318,0.84349538,220.88,220.87,0.5212525]
[1734105338522,0.84349538,220.91,220.87,0.5212525]
[1734105338943,37.33528065,220.94,220.87,0.5212525]
[1734105339240,0.84349538,220.94,220.87,0.5212525]
[1734105339441,23.776884,220.96,220.87,0.5212525]
[1734105339642,0.84349538,220.95,220.87,0.5212525]
[1734105339860,0.84349538,220.95,220.89,2.28509873]
[1734105340047,24.62037938,220.98,220.89,2.28509873]
[1734105340222,27.71490127,220.97,220.87,0.5212525]
[1734105340421,24.62037938,220.98,220.87,0.5212525]
[1734105340422,23.776884,220.94,220.87,0.5212525]
[1734105340619,0.84349538,220.93,220.87,0.5212525]
[1734105341254,24.62037938,220.96,220.87,0.5212525]
[1734105341749,23.776884,220.94,220.87,0.5212525]
[1734105341944,0.84349538,220.93,220.87,0.5212525]
[1734105342527,0.84349538,220.96,220.88,2.28509873]
[1734105342940,0.84349538,220.98,220.91,2.28509873]
[1734105343134,13.55839665,221.01,220.91,2.28509873]
[1734105343342,12.71490127,220.99,220.89,2.28509873]
[1734105343542,12.71490127,220.97,220.87,2.80635123]
[1734105343755,0.84349538,220.96,220.87,2.80635123]
[1734105344244,0.84349538,220.98,220.9,2.28509873]
[1734105344753,13.55839665,221.02,220.9,2.28509873]
[1734105345045,27.71490127,220.99,220.89,7.4424]
[1734105345348,0.84349538,220.98,220.89,9.72749873]
[1734105345521,0.84349538,220.98,220.89,7.4424]
[1734105345845,13.55839665,220.98,220.89,7.4424]
[1734105346047,36.49178527,220.94,220.87,0.5212525]
[1734105346250,0.84349538,220.93,220.87,0.5212525]
[1734105346633,23.776884,220.92,220.87,0.5212525]
[1734105346839,0.84349538,220.91,220.87,0.5212525]
[1734105347033,23.776884,220.95,220.87,0.5212525]
[1734105347241,0.84349538,220.94,220.87,0.5212525]
[1734105347827,0.84349538,220.94,220.87,2.80635123]
[1734105348033,0.84349538,220.96,220.87,37.97266594]
[1734105348240,0.84349538,221.0,220.91,37.45141344]
[1734105348443,0.84349538,221.03,220.94,2.28509873]
[1734105348637,0.84349538,221.03,220.95,35.16631471]
[1734105348838,0.84349538,221.05,220.98,2.28509873]
[1734105349041,12.71490127,221.08,220.96,2.28509873]
[1734105349361,0.84349538,221.07,220.96,2.28509873]
[1734105349553,0.84349538,221.07,220.98,2.28509873]
[1734105349736,12.71490127,221.1,220.98,2.28509873]
[1734105349938,0.84349538,221.09,220.98,2.28509873]
[1734105350454,0.84349538,221.09,221.01,2.28509873]
[1734105350749,0.84349538,221.11,221.03,2.28509873]
[1734105351539,0.84349538,221.13,221.03,2.28509873]
[1734105352254,12.71490127,221.12,221.03,2.28509873]
[1734105352459,24.62037938,221.11,221.03,2.28509873]
[1734105352849,24.62037938,221.11,221.01,2.28509873]
[1734105353043,23.776884,221.09,220.99,2.28509873]
[1734105353243,12.71490127,221.1,220.96,19.1274]
[1734105353244,23.776884,221.07,220.96,19.1274]
[1734105353460,23.776884,221.05,220.96,19.1274]
[1734105353645,23.776884,221.05,220.96,7.5618]
[1734105353646,12.71490127,221.01,220.96,7.5618]
[1734105353839,24.62037938,221.0,220.96,7.5618]
[1734105354043,27.71490127,221.09,220.96,7.5618]
[1734105354241,23.776884,221.06,220.96,9.84689873]
[1734105354438,0.84349538,221.05,220.96,9.84689873]
[1734105354659,0.84349538,221.05,220.99,2.28509873]
[1734105354843,12.71490127,221.1,220.99,2.28509873]
[1734105354844,15.0,221.08,220.99,2.28509873]
[1734105355161,0.84349538,221.07,220.99,2.28509873]
[1734105355670,0.84349538,221.07,220.96,7.5618]
[1734105355882,0.84349538,221.07,220.97,2.28509873]
[1734105356046,23.776884,221.06,220.97,2.28509873]
[1734105356245,0.84349538,221.05,220.97,2.28509873]
[1734105356653,23.776884,221.02,220.96,7.5618]
[1734105356839,23.776884,221.0,220.96,7.5618]
[1734105357042,0.84349538,221.01,220.96,7.5618]
[1734105357354,37.33528065,221.05,220.96,7.5618]
[1734105357554,0.84349538,221.05,220.98,2.28509873]
[1734105357963,24.62037938,221.08,220.98,2.28509873]
[1734105358650,0.84349538,221.08,220.99,37.45141344]
[1734105358852,15.0,221.09,220.99,37.45141344]
[1734105359055,0.84349538,221.08,220.97,37.45141344]
[1734105359380,0.84349538,221.08,220.96,7.5618]
[1734105359381,12.71490127,221.04,220.96,7.5618]
[1734105359678,0.84349538,221.03,220.96,7.0618]
[1734105360080,23.776884,221.02,220.96,7.0618]
[1734105360247,0.84349538,221.01,220.96,7.0618]
[1734105360671,0.84349538,221.03,220.97,2.28509873]
[1734105361085,0.84349538,221.08,220.97,23.90498584]
[1734105361380,0.84349538,221.08,220.99,21.61988711]
[1734105361546,0.84349538,221.08,220.97,33.54978711]
[1734105361745,0.84349538,221.08,220.99,2.28509873]
[1734105361947,0.84349538,221.08,221.01,23.90498584]
[1734105362147,0.84349538,221.12,221.01,23.90498584]
[1734105362368,12.71490127,221.08,220.97,11.9299]
[1734105362546,15.0,221.04,220.96,7.0618]
[1734105362750,0.84349538,221.03,220.96,7.0618]
[1734105363561,0.84349538,221.03,220.97,2.28509873]
[1734105363765,0.84349538,221.04,220.97,2.28509873]
[1734105364147,0.84349538,221.04,220.99,2.28509873]
[1734105364354,0.84349538,221.08,221.01,2.28509873]
[1734105364545,15.0,221.15,220.96,7.0618]
[1734105364546,11.3059,221.13,221.03,2.28509873]
[1734105364751,0.84349538,221.12,221.03,2.28509873]
[1734105364962,0.84349538,221.12,221.05,2.28509873]
[1734105365159,0.84349538,221.12,221.03,2.28509873]
[1734105365358,0.84349538,221.12,221.05,2.28509873]
[1734105365958,0.84349538,221.14,221.07,2.28509873]
[1734105366271,0.84349538,221.16,221.09,2.28509873]
[1734105366472,15.0,221.18,221.09,2.28509873]
[1734105366654,0.84349538,221.17,221.09,2.28509873]
[1734105366854,0.84349538,221.17,221.11,2.28509873]
[1734105367171,0.84349538,221.2,221.12,23.90498584]
[1734105367358,0.84349538,221.2,221.14,2.28509873]
[1734105367672,6.72177987,221.29,221.08,4.3404]
[1734105367673,0.84349538,221.24,221.2,2.28509873]
[1734105367891,11.2989,221.26,221.14,2.28509873]
[1734105368174,15.0,221.23,221.1,2.28509873]
[1734105368382,15.0,221.21,221.12,2.28509873]
[1734105368587,0.84349538,221.2,221.1,2.28509873]
[1734105368793,0.84349538,221.2,221.13,2.28509873]
[1734105368954,12.14039538,221.3,221.19,2.28509873]
[1734105369150,0.84349538,221.3,221.21,23.90498584]
[1734105369348,15.0,221.3,221.18,21.61988711]
[1734105369579,0.84349538,221.29,221.18,23.90498584]
[1734105369952,0.84349538,221.29,221.2,2.28509873]
[1734105370148,0.84349538,221.29,221.22,2.28509873]
[1734105371186,0.84349538,221.29,221.2,2.28509873]
[1734105371367,35.074784,221.28,221.16,23.90498584]
[1734105371581,23.776884,221.26,221.18,2.28509873]
[1734105371781,0.84349538,221.25,221.18,2.28509873]
[1734105371951,0.84349538,221.25,221.19,4.3108]
[1734105372152,0.84349538,221.25,221.2,2.28509873]
[1734105372379,11.2979,221.28,221.19,4.3108]
[1734105372380,0.84349538,221.27,221.19,4.3108]
[1734105372589,15.0,221.24,221.16,2.28509873]
[1734105372801,15.0,221.22,221.12,4.3108]
[1734105372985,27.71490127,221.2,221.12,4.3108]
[1734105373299,23.776884,221.14,221.06,4.3108]
[1734105373577,23.776884,221.12,221.06,4.3108]
[1734105373878,27.14899538,221.13,221.0,2.28509873]
[1734105373879,23.776884,221.1,221.0,2.28509873]
[1734105374077,0.84349538,221.09,221.04,2.28509873]
[1734105374376,23.776884,221.11,221.04,2.28509873]
[1734105374577,0.84349538,221.1,221.0,2.28509873]
[1734105374775,23.776884,221.09,220.99,2.28509873]
[1734105374976,0.84349538,221.1,220.95,4.2622]
[1734105374977,23.776884,221.07,220.95,4.2622]
[1734105375183,23.776884,221.05,220.95,4.2622]
[1734105375365,0.84349538,221.04,220.97,2.28509873]
[1734105375682,23.776884,221.03,220.95,4.2622]
[1734105375883,23.776884,221.01,220.95,4.2622]
[1734105376057,27.71490127,221.06,220.95,4.2622]
[1734105376058,0.84349538,221.0,220.95,4.2622]
[1734105376257,0.84349538,221.05,220.95,4.2622]
[1734105376459,0.84349538,221.05,220.99,2.28509873]
[1734105376667,23.776884,221.09,220.99,2.28509873]
[1734105376879,0.84349538,221.08,220.99,2.28509873]
[1734105377080,23.776884,221.07,220.99,2.28509873]
[1734105377281,0.84349538,221.06,220.99,2.28509873]
[1734105377683,0.84349538,221.08,220.99,2.28509873]
[1734105377885,0.84349538,221.08,221.03,2.28509873]
[1734105378209,0.84349538,221.1,221.03,2.28509873]
[1734105378705,12.71490127,221.13,221.01,2.28509873]
[1734105379049,15.0,221.11,221.0,2.28509873]
[1734105379280,0.84349538,221.1,221.03,2.28509873]
[1734105379459,0.84349538,221.1,221.05,2.28509873]
[1734105379659,0.84349538,221.14,221.09,2.28509873]
[1734105379976,0.84349538,221.18,221.09,6.80129873]
[1734105380297,12.71490127,221.14,221.03,2.28509873]
[1734105380464,15.0,221.12,221.03,2.28509873]
[1734105380660,0.84349538,221.11,221.03,2.28509873]
[1734105380863,23.776884,221.1,221.03,2.28509873]
[1734105381164,0.84349538,221.09,221.03,2.28509873]
[1734105381364,0.84349538,221.09,221.02,4.5162]
[1734105381578,23.776884,221.08,220.96,2.28509873]
[1734105381777,23.776884,221.05,220.95,4.5738]
[1734105381963,23.776884,221.03,220.95,4.5738]
[1734105382162,23.776884,221.01,220.95,4.5738]
[1734105382384,23.776884,220.99,220.95,4.5738]
[1734105382592,0.84349538,220.98,220.95,4.5738]
[1734105383081,23.776884,220.97,220.92,2.9]
[1734105383291,23.776884,220.95,220.92,2.9]
[1734105383496,0.84349538,220.94,220.92,2.9]
[1734105383663,23.776884,220.98,220.92,2.9]
[1734105383865,0.84349538,220.97,220.92,2.9]
[1734105384477,23.776884,220.96,220.92,2.9]
[1734105384674,0.84349538,220.95,220.92,2.9]
[1734105385901,0.84349538,221.0,220.96,2.28509873]
[1734105386210,11.309,221.07,220.99,1.6048]
[1734105386408,0.84349538,221.06,221.02,2.28509873]
[1734105386617,11.3067,221.11,221.02,2.28509873]
[1734105386618,0.84349538,221.11,221.03,1.6049]
[1734105387195,15.84349538,221.11,221.03,1.6049]
[1734105387394,0.84349538,221.11,221.04,2.28509873]
[1734105387594,0.84349538,221.11,221.03,1.6049]
[1734105388117,11.3071,221.1,221.03,1.6049]
[1734105388415,35.0,221.07,221.03,1.6049]
[1734105388601,23.776884,221.05,221.03,1.6049]
[1734105388800,24.62037938,221.04,221.03,1.6049]
[1734105389223,23.776884,221.03,220.96,1.6049]
[1734105389431,0.84349538,221.02,220.99,2.28509873]
[1734105389718,24.62037938,221.05,220.98,1.5622]
[1734105390313,39.62037938,221.05,220.98,1.5622]
[1734105390709,24.62037938,221.05,220.98,1.5622]
[1734105391111,39.62037938,221.05,220.98,1.5622]
[1734105391306,23.776884,221.01,220.98,1.5622]
[1734105391513,23.776884,220.99,220.98,1.5622]
[1734105391713,0.84349538,221.0,220.98,3.84729873]
[1734105391922,0.84349538,221.03,221.0,2.28509873]
[1734105392227,15.84349538,221.09,221.01,1.5622]
[1734105392604,0.84349538,221.09,221.01,1.5622]
[1734105392805,0.84349538,221.09,221.07,2.28509873]
[1734105393008,15.0,221.17,221.07,2.28509873]
[1734105393009,0.84349538,221.16,221.08,2.28509873]
[1734105393406,0.84349538,221.16,221.11,1.5622]
[1734105393626,0.84349538,221.16,221.12,2.28509873]
[1734105394134,0.84349538,221.2,221.12,2.28509873]
[1734105394504,3.58021382,221.2,221.11,3.84729873]
[1734105394735,3.58021382,221.2,221.13,2.28509873]
[1734105394912,11.3025,221.19,221.11,1.5622]
[1734105395116,0.84349538,221.18,221.11,1.5622]
[1734105395315,0.84349538,221.18,221.11,3.84729873]
[1734105395528,0.84349538,221.18,221.11,1.5622]
[1734105396031,0.84349538,221.18,221.11,3.84729873]
[1734105396207,23.776884,221.17,221.11,3.84729873]
[1734105396409,23.776884,221.15,221.11,3.84729873]
[1734105396603,0.84349538,221.14,221.11,3.84729873]
[1734105397509,0.84349538,221.16,221.11,3.84729873]
[1734105398133,23.776884,221.15,221.11,3.84729873]
[1734105398330,0.84349538,221.14,221.11,3.84729873]
[1734105398528,23.776884,221.13,221.11,1.5622]
[1734105398738,24.62037938,221.12,221.11,1.5622]
[1734105399107,23.776884,221.11,220.99,8.72169873]
[1734105399306,23.776884,221.09,221.01,2.28509873]
[1734105399526,23.776884,221.07,220.99,8.72169873]
[1734105399731,23.776884,221.05,221.01,2.28509873]
[1734105399920,0.84349538,221.04,221.01,2.28509873]